fUSD/lending_fUSD_20250503
["ID","MTS","AMOUNT","RATE_DAILY","PERIOD"]
[359721239,1746279043159,-1073.91,0.00019728,2]
[359721240,1746279043170,-681.27,0.00019728,2]
[359721241,1746279043179,-450.0,0.00019728,2]
[359721243,1746279043188,-450.0,0.00019728,2]
[359721244,1746279043198,-450.0,0.00019728,2]
[359721246,1746279043208,-450.0,0.00019728,2]
[359721248,1746279043217,-450.0,0.00019728,2]
[359721250,1746279043227,-450.0,0.00019728,2]
[359721252,1746279043237,-450.0,0.00019728,2]
[359721254,1746279043247,-450.0,0.00019728,2]
[359721255,1746279043257,-732.37,0.00019728,2]
[359721256,1746279043271,-500.99,0.00019728,2]
[359721258,1746279043281,-2123.75,0.00019728,2]
[359721260,1746279043291,-450.0,0.00019728,2]
[359721262,1746279043300,-450.0,0.00019728,2]
[359721264,1746279043310,-450.0,0.00019728,2]
[359721265,1746279043320,-450.0,0.00019728,2]
[359721267,1746279043331,-450.0,0.00019728,2]
[359721268,1746279043342,-168.82327602,0.00019728,2]
[359721269,1746279043351,-450.0,0.00019728,2]
[359721270,1746279043361,-450.0,0.00019728,2]
[359721271,1746279043371,-450.0,0.00019728,2]
[359721272,1746279043381,-450.0,0.00019728,2]
[359721273,1746279043390,-450.0,0.00019728,2]
[359721274,1746279043399,-636.55,0.00019728,2]
[359721275,1746279043409,-481.68611999,0.00019728,2]
[359721276,1746279043418,-167.75944272,0.00019728,2]
[359721277,1746279043428,-450.0,0.00019728,2]
[359721278,1746279043437,-478.33957761,0.00019728,2]
[359721279,1746279043446,-450.0,0.00019728,2]
[359721280,1746279043456,-450.0,0.00019728,2]
[359721281,1746279043466,-450.0,0.00019728,2]
[359721282,1746279043475,-472.99754286,0.00019728,2]
[359721283,1746279043485,-472.61464909,0.00019728,2]
[359721284,1746279043494,-478.30414347,0.00019728,2]
[359721285,1746279043503,-450.0,0.00019728,2]
[359721286,1746279043513,-505.94631352,0.00019728,2]
[359721287,1746279043522,-450.0,0.00019728,2]
[359721288,1746279043531,-512.52,0.00019728,2]
[359721289,1746279043543,-450.0,0.00019728,2]
[359721290,1746279043552,-450.0,0.00019728,2]
[359721291,1746279043562,-450.0,0.00019728,2]
[359721292,1746279043571,-280.71919491,0.00019728,2]
[359721293,1746279043581,-474.22018623,0.00019728,2]
[359721294,1746279043590,-450.0,0.00019728,2]
[359721295,1746279043600,-500.0,0.00019728,2]
[359721296,1746279043610,-450.0,0.00019728,2]
[359721297,1746279043620,-496.24,0.00019728,2]
[359721298,1746279043629,-703.95,0.00019728,2]
[359721299,1746279043639,-450.0,0.00019728,2]
[359721300,1746279043648,-480.0013835,0.00019728,2]
[359721302,1746279043657,-450.0,0.00019728,2]
[359721303,1746279043667,-450.0,0.00019728,2]
[359721304,1746279043676,-450.0,0.00019728,2]
[359721305,1746279043686,-946.73,0.00019728,2]
[359721306,1746279043696,-450.0,0.00019728,2]
[359721307,1746279043706,-412.14685447,0.00019728,2]
[359721308,1746279043715,-474.06297841,0.00019728,2]
[359721309,1746279043725,-479.31271413,0.00019728,2]
[359721310,1746279043734,-474.44796838,0.00019728,2]
[359721311,1746279043743,-450.0,0.00019728,2]
[359721312,1746279043753,-450.0,0.00019728,2]
[359721313,1746279043762,-482.77,0.00019728,2]
[359721314,1746279043771,-789.94,0.00019728,2]
[359721315,1746279043781,-450.0,0.00019728,2]
[359721316,1746279043790,-450.0,0.00019728,2]
[359721317,1746279043799,-450.0,0.00019728,2]
[359721318,1746279043809,-472.79538287,0.00019728,2]
[359721320,1746279043818,-450.0,0.00019728,2]
[359721322,1746279043827,-450.0,0.00019728,2]
[359721324,1746279043837,-450.0,0.00019728,2]
[359721326,1746279043846,-450.0,0.00019728,2]
[359721327,1746279043855,-450.0,0.00019728,2]
[359721328,1746279043864,-474.22776786,0.00019728,2]
[359721329,1746279043874,-450.0,0.00019728,2]
[359721330,1746279043883,-476.33421661,0.00019728,2]
[359721331,1746279043892,-487.36,0.00019728,2]
[359721332,1746279043901,-450.0,0.00019728,2]
[359721333,1746279043910,-450.0,0.00019728,2]
[359721334,1746279043921,-734.6,0.00019728,2]
[359721335,1746279043931,-450.0,0.00019728,2]
[359721336,1746279043941,-450.0,0.00019728,2]
[359721337,1746279043951,-450.0,0.00019728,2]
[359721338,1746279043960,-450.0,0.00019728,2]
[359721339,1746279043970,-450.0,0.00019728,2]
[359721340,1746279043982,-736.45,0.00019728,2]
[359721341,1746279043991,-450.0,0.00019728,2]
[359721342,1746279044002,-450.0,0.00019728,2]
[359721343,1746279044011,-450.0,0.00019728,2]
[359721344,1746279044021,-625.95,0.00019728,2]
[359721345,1746279044030,-473.63817928,0.00019728,2]
[359721346,1746279044039,-450.0,0.00019728,2]
[359721347,1746279044048,-500.0,0.00019728,2]
[359721348,1746279044057,-748.41,0.00019728,2]
[359721349,1746279044067,-450.0,0.00019728,2]
[359721350,1746279044075,-450.0,0.00019728,2]
[359721351,1746279044084,-450.0,0.00019728,2]
[359721352,1746279044095,-3957.4,0.00019728,2]
[359721353,1746279044104,-450.0,0.00019728,2]
[359721354,1746279044113,-450.0,0.00019728,2]
[359721355,1746279044123,-449.73983441,0.00019728,2]
[359721356,1746279044132,-450.0,0.00019728,2]
[359721357,1746279044142,-450.0,0.00019728,2]
[359721358,1746279044152,-450.0,0.00019728,2]
[359721359,1746279044161,-450.0,0.00019728,2]
[359721360,1746279044171,-450.0,0.00019728,2]
[359721361,1746279044180,-450.0,0.00019728,2]
[359721362,1746279044189,-450.0,0.00019728,2]
[359721363,1746279044198,-641.96,0.00019728,2]
[359721364,1746279044207,-450.0,0.00019728,2]
[359721365,1746279044217,-450.97,0.00019728,2]
[359721366,1746279044226,-450.0,0.00019728,2]
[359721367,1746279044235,-450.0,0.00019728,2]
[359721368,1746279044245,-450.0,0.00019728,2]
[359721369,1746279044254,-450.0,0.00019728,2]
[359721370,1746279044265,-2239.79,0.00019728,2]
[359721371,1746279044275,-450.0,0.00019728,2]
[359721372,1746279044285,-465.99267293,0.00019728,2]
[359721373,1746279044294,-450.0,0.00019728,2]
[359721374,1746279044303,-450.0,0.00019728,2]
[359721375,1746279044315,-530.6,0.00019728,2]
[359721376,1746279044324,-593.64,0.00019728,2]
[359721377,1746279044333,-450.0,0.00019728,2]
[359721378,1746279044343,-784.4,0.00019728,2]
[359721379,1746279044352,-450.0,0.00019728,2]
[359721380,1746279044362,-1552.19,0.00019728,2]
[359721381,1746279044371,-450.0,0.00019728,2]
[359721382,1746279044380,-499.04539545,0.00019728,2]
[359721383,1746279044389,-604.99,0.00019728,2]
[359721384,1746279044398,-450.0,0.00019728,2]
[359721385,1746279044407,-898.81,0.00019728,2]
[359721386,1746279044416,-450.0,0.00019728,2]
[359721387,1746279044426,-465.28,0.00019728,2]
[359721388,1746279044435,-491.76,0.00019728,2]
[359721389,1746279044445,-450.0,0.00019728,2]
[359721390,1746279044454,-2464.59,0.00019728,2]
[359721391,1746279044463,-1052.85,0.00019728,2]
[359721392,1746279044473,-450.0,0.00019728,2]
[359721393,1746279044482,-450.0,0.00019728,2]
[359721394,1746279044492,-450.0,0.00019728,2]
[359721395,1746279044501,-450.0,0.00019728,2]
[359721396,1746279044511,-450.0,0.00019728,2]
[359721397,1746279044520,-450.0,0.00019728,2]
[359721398,1746279044529,-450.0,0.00019728,2]
[359721399,1746279044539,-450.0,0.00019728,2]
[359721400,1746279044549,-450.0,0.00019728,2]
[359721401,1746279044558,-5031.75,0.00019728,2]
[359721402,1746279044567,-450.0,0.00019728,2]
[359721403,1746279044577,-450.0,0.00019728,2]
[359721404,1746279044586,-495.78440254,0.00019728,2]
[359721405,1746279044595,-537.77,0.00019728,2]
[359721406,1746279044605,-450.0,0.00019728,2]
[359721407,1746279044614,-500.0,0.00019728,2]
[359721408,1746279044626,-450.0,0.00019728,2]
[359721409,1746279044635,-597.75,0.00019728,2]
[359721410,1746279044644,-450.0,0.00019728,2]
[359721411,1746279044655,-450.0,0.00019728,2]
[359721412,1746279044666,-4703.77,0.00019728,2]
[359721413,1746279044675,-535.02,0.00019728,2]
[359721414,1746279044685,-536.33,0.00019728,2]
[359721415,1746279044695,-500.0,0.00019728,2]
[359721416,1746279044704,-450.0,0.00019728,2]
[359721417,1746279044713,-450.0,0.00019728,2]
[359721418,1746279044723,-662.6,0.00019728,2]
[359721419,1746279044732,-1155.48,0.00019728,2]
[359721420,1746279044741,-450.0,0.00019728,2]
[359721421,1746279044750,-5633.86,0.00019728,2]
[359721422,1746279044759,-241.32496352,0.00019728,2]
[359721423,1746279044768,-1924.5,0.00019728,2]
[359721424,1746279044778,-450.0,0.00019728,2]
[359721425,1746279044787,-450.0,0.00019728,2]
[359721426,1746279044796,-450.0,0.00019728,2]
[359721427,1746279044806,-479.87,0.00019728,2]
[359721428,1746279044815,-450.0,0.00019728,2]
[359721429,1746279044824,-1914.66,0.00019728,2]
[359721430,1746279044834,-368.23329625,0.00019728,2]
[359721431,1746279044843,-450.0,0.00019728,2]
[359721432,1746279044852,-450.0,0.00019728,2]
[359721433,1746279044861,-450.0,0.00019728,2]
[359721434,1746279044870,-450.0,0.00019728,2]
[359721435,1746279044879,-450.0,0.00019728,2]
[359721436,1746279044888,-450.0,0.00019728,2]
[359721437,1746279044898,-777.46,0.00019728,2]
[359721438,1746279044907,-450.0,0.00019728,2]
[359721439,1746279044917,-450.0,0.00019728,2]
[359721440,1746279044927,-999.0,0.00019728,2]
[359721441,1746279044937,-450.0,0.00019728,2]
[359721442,1746279044947,-450.0,0.00019728,2]
[359721443,1746279044956,-450.0,0.00019728,2]
[359721444,1746279044965,-5772.05,0.00019728,2]
[359721445,1746279044975,-450.0,0.00019728,2]
[359721446,1746279044984,-450.0,0.00019728,2]
[359721447,1746279044993,-741.68,0.00019728,2]
[359721448,1746279045002,-450.0,0.00019728,2]
[359721449,1746279045012,-1884.27,0.00019728,2]
[359721450,1746279045021,-106401.88,0.00019728,2]
[359721451,1746279045030,-450.0,0.00019728,2]
[359721452,1746279045040,-450.0,0.00019728,2]
[359721453,1746279045049,-380.67365843,0.00019728,2]
[359721454,1746279045059,-744.87,0.00019728,2]
[359721455,1746279045069,-450.0,0.00019728,2]
[359721456,1746279045078,-450.0,0.00019728,2]
[359721457,1746279045088,-1739.07,0.00019728,2]
[359721458,1746279045097,-450.0,0.00019728,2]
[359721459,1746279045170,-300.0,0.00019728,2]
[359721460,1746279045181,-450.0,0.00019728,2]
[359721461,1746279045190,-637.85,0.00019728,2]
[359721462,1746279045202,-515.31,0.00019728,2]
[359721463,1746279045211,-450.0,0.00019728,2]
[359721464,1746279045221,-630.68,0.00019728,2]
[359721465,1746279045232,-736.06,0.00019728,2]
[359721466,1746279045241,-25426.48,0.00019728,2]
[359721467,1746279045251,-450.0,0.00019728,2]
[359721468,1746279045262,-511.38,0.00019728,2]
[359721469,1746279045276,-450.0,0.00019728,2]
[359721470,1746279045286,-450.0,0.00019728,2]
[359721471,1746279045297,-450.0,0.00019728,2]
[359721472,1746279045308,-642.47,0.00019728,2]
[359721473,1746279045317,-450.0,0.00019728,2]
[359721474,1746279045326,-1774.52,0.00019728,2]
[359721475,1746279045335,-571.66696018,0.00019728,2]
[359721476,1746279045346,-450.0,0.00019728,2]
[359721477,1746279045355,-1013.37,0.00019728,2]
[359721478,1746279045365,-450.0,0.00019728,2]
[359721479,1746279045375,-682.19,0.00019728,2]
[359721480,1746279045384,-450.0,0.00019728,2]
[359721481,1746279045394,-15463.34,0.00019728,2]
[359721482,1746279045403,-450.0,0.00019728,2]
[359721483,1746279045412,-450.0,0.00019728,2]
[359721484,1746279045422,-450.0,0.00019728,2]
[359721485,1746279045431,-450.0,0.00019728,2]
[359721486,1746279045440,-450.0,0.00019728,2]
[359721487,1746279045449,-450.0,0.00019728,2]
[359721488,1746279045459,-450.0,0.00019728,2]
[359721489,1746279045468,-1042.33,0.00019728,2]
[359721490,1746279045478,-500.0,0.00019728,2]
[359721491,1746279045487,-450.0,0.00019728,2]
[359721492,1746279045497,-450.0,0.00019728,2]
[359721493,1746279045506,-450.0,0.00019728,2]
[359721494,1746279045516,-450.0,0.00019728,2]
[359721495,1746279045525,-450.0,0.00019728,2]
[359721496,1746279045534,-450.0,0.00019728,2]
[359721497,1746279045544,-450.0,0.00019728,2]
[359721498,1746279045553,-450.0,0.00019728,2]
[359721499,1746279045563,-450.0,0.00019728,2]
[359721500,1746279045572,-450.0,0.00019728,2]
[359721501,1746279045581,-450.0,0.00019728,2]
[359721502,1746279045591,-450.0,0.00019728,2]
[359721503,1746279045600,-450.0,0.00019728,2]
[359721504,1746279045609,-848.67,0.00019728,2]
[359721505,1746279045618,-450.0,0.00019728,2]
[359721506,1746279045628,-2640.69,0.00019728,2]
[359721507,1746279045637,-450.0,0.00019728,2]
[359721508,1746279045648,-166.2246764,0.00019728,2]
[359721509,1746279045657,-450.0,0.00019728,2]
[359721510,1746279045666,-450.0,0.00019728,2]
[359721511,1746279045676,-450.0,0.00019728,2]
[359721512,1746279045686,-450.0,0.00019728,2]
[359721513,1746279045695,-450.0,0.00019728,2]
[359721514,1746279045704,-626.48,0.00019728,2]
[359721515,1746279045714,-450.0,0.00019728,2]
[359721516,1746279045723,-1229.88,0.00019728,2]
[359721517,1746279045732,-450.0,0.00019728,2]
[359721518,1746279045742,-532.11,0.00019728,2]
[359721519,1746279045751,-450.0,0.00019728,2]
[359721520,1746279045760,-450.0,0.00019728,2]
[359721521,1746279045769,-450.0,0.00019728,2]
[359721522,1746279045779,-450.0,0.00019728,2]
[359721523,1746279045788,-554.23,0.00019728,2]
[359721524,1746279045797,-450.0,0.00019728,2]
[359721525,1746279045807,-450.0,0.00019728,2]
[359721526,1746279045818,-562.94038197,0.00019728,2]
[359721527,1746279045827,-450.0,0.00019728,2]
[359721528,1746279045836,-582.62,0.00019728,2]
[359721529,1746279045845,-398.2486717,0.00019728,2]
[359721530,1746279045855,-937.71,0.00019728,2]
[359721531,1746279045865,-324.99534254,0.00019728,2]
[359721532,1746279045875,-533.2085114,0.00019728,2]
[359721533,1746279045885,-450.0,0.00019728,2]
[359721534,1746279045894,-260.07111918,0.00019728,2]
[359721535,1746279045903,-456.68072204,0.00019728,2]
[359721536,1746279045913,-450.0,0.00019728,2]
[359721537,1746279045923,-536.24,0.00019728,2]
[359721538,1746279045932,-450.0,0.00019728,2]
[359721539,1746279045941,-450.0,0.00019728,2]
[359721540,1746279045951,-461.82,0.00019728,2]
[359721541,1746279045961,-450.0,0.00019728,2]
[359721542,1746279045971,-450.0,0.00019728,2]
[359721543,1746279045980,-450.0,0.00019728,2]
[359721544,1746279045990,-720.32,0.00019728,2]
[359721545,1746279045999,-450.0,0.00019728,2]
[359721546,1746279046009,-450.0,0.00019728,2]
[359721547,1746279046018,-1322.77,0.00019728,2]
[359721548,1746279046028,-198.04898131,0.00019728,2]
[359721549,1746279046038,-506.13,0.00019728,2]
[359721550,1746279046047,-450.0,0.00019728,2]
[359721551,1746279046057,-1736.47,0.00019728,2]
[359721553,1746279046067,-450.0,0.00019728,2]
[359721555,1746279046076,-603.77,0.00019728,2]
[359721556,1746279046085,-450.0,0.00019728,2]
[359721558,1746279046095,-450.0,0.00019728,2]
[359721559,1746279046104,-450.0,0.00019728,2]
[359721560,1746279046113,-450.0,0.00019728,2]
[359721561,1746279046123,-450.0,0.00019728,2]
[359721562,1746279046132,-450.0,0.00019728,2]
[359721563,1746279046142,-450.0,0.00019728,2]
[359721564,1746279046151,-450.0,0.00019728,2]
[359721565,1746279046161,-810.98,0.00019728,2]
[359721566,1746279046170,-450.0,0.00019728,2]
[359721567,1746279046179,-450.0,0.00019728,2]
[359721568,1746279046189,-450.0,0.00019728,2]
[359721569,1746279046199,-345.30219097,0.00019728,2]
[359721570,1746279046208,-694.36,0.00019728,2]
[359721571,1746279046217,-533.76899943,0.00019729,2]
[359721572,1746279046227,-450.0,0.00019729,2]
[359721573,1746279046236,-450.0,0.00019729,2]
[359721574,1746279046246,-450.0,0.00019729,2]
[359721575,1746279046255,-211.18746322,0.00019729,2]
[359721576,1746279046267,-450.0,0.00019729,2]
[359721577,1746279046276,-450.0,0.00019729,2]
[359721578,1746279046286,-498.25,0.00019729,2]
[359721579,1746279046295,-504.67890109,0.00019729,2]
[359721580,1746279046305,-450.0,0.00019729,2]
[359721581,1746279046315,-415.87520554,0.00019729,2]
[359721582,1746279046324,-450.0,0.00019729,2]
[359721583,1746279046333,-450.0,0.00019729,2]
[359721584,1746279046344,-552.43,0.00019729,2]
[359721585,1746279046355,-450.0,0.00019729,2]
[359721586,1746279046364,-450.0,0.00019729,2]
[359721587,1746279046373,-411.68950583,0.00019729,2]
[359721588,1746279046382,-450.0,0.00019729,2]
[359721589,1746279046392,-450.0,0.00019729,2]
[359721590,1746279046402,-450.0,0.00019729,2]
[359721591,1746279046411,-450.0,0.00019729,2]
[359721592,1746279046420,-450.0,0.00019729,2]
[359721593,1746279046429,-512.32,0.00019729,2]
[359721594,1746279046439,-450.0,0.00019729,2]
[359721595,1746279046448,-450.0,0.00019729,2]
[359721596,1746279046457,-450.0,0.00019729,2]
[359721597,1746279046467,-150.0,0.00019729,2]
[359721598,1746279046476,-150.50631763,0.00019729,2]
[359721599,1746279046485,-500.0,0.00019729,2]
[359721600,1746279046494,-500.0,0.00019729,2]
[359721601,1746279046504,-150.0,0.00019729,2]
[359721602,1746279046513,-500.0,0.00019729,2]
[359721603,1746279046522,-150.0,0.00019729,2]
[359721604,1746279046531,-500.0,0.00019729,2]
[359721605,1746279046540,-500.0,0.00019729,2]
[359721606,1746279046550,-150.0,0.00019729,2]
[359721607,1746279046559,-155.75221986,0.00019729,2]
[359721608,1746279046568,-500.0,0.00019729,2]
[359721609,1746279046578,-152.6145878,0.00019729,2]
[359721610,1746279046587,-152.14871149,0.00019729,2]
[359721611,1746279046596,-150.0,0.00019729,2]
[359721612,1746279046606,-151.58141224,0.00019729,2]
[359721613,1746279046616,-150.0,0.00019729,2]
[359721614,1746279046625,-500.0,0.00019729,2]
[359721615,1746279046635,-160.39430857,0.00019729,2]
[359721616,1746279046644,-500.0,0.00019729,2]
[359721617,1746279046653,-150.0,0.00019729,2]
[359721618,1746279046663,-150.0,0.00019729,2]
[359721620,1746279046672,-999.99,0.0001974,2]
[359721621,1746279046681,-259.02,0.0001974,2]
[359721623,1746279046691,-1219.12,0.0001974,2]
[359721624,1746279046701,-507.79732888,0.00019749,2]
[359721625,1746279046710,-57964.31506077,0.0001975,2]
[359721626,1746279046719,-527.4996018,0.00019773,2]
[359721627,1746279046728,-500.0,0.00019773,2]
[359721628,1746279046737,-500.0,0.00019773,2]
[359721629,1746279046746,-369.03481286,0.00019773,2]
[359721630,1746279046755,-500.0,0.00019773,2]
[359721631,1746279046765,-500.0,0.00019773,2]
[359721632,1746279046775,-162.1885406,0.00019773,2]
[359721633,1746279046784,-500.0,0.00019773,2]
[359721634,1746279046793,-500.0,0.00019773,2]
[359721635,1746279046803,-500.0,0.00019773,2]
[359721636,1746279046811,-500.0,0.00019773,2]
[359721637,1746279046821,-500.0,0.00019773,2]
[359721638,1746279046830,-160.11863319,0.00019773,2]
[359721639,1746279046839,-500.0,0.00019773,2]
[359721640,1746279046848,-500.0,0.00019773,2]
[359721641,1746279046858,-500.0,0.00019773,2]
[359721642,1746279046867,-291.86484364,0.00019773,2]
[359721643,1746279046878,-500.0,0.00019773,2]
[359721644,1746279046888,-507.79732888,0.00019779,2]
[359721645,1746279046897,-2854.2825841,0.00019799,2]
[359721646,1746279046906,-507.79732888,0.00019809,2]
[359721647,1746279046916,-12500.0,0.0001983,2]
[359721648,1746279046925,-151.0,0.00019834,2]
[359721649,1746279046935,-151.0,0.00019835,2]
[359721650,1746279046945,-151.0,0.00019835,2]
[359721651,1746279046955,-151.0,0.00019835,2]
[359721652,1746279046964,-12500.0,0.00019838,2]
[359721653,1746279046973,-521.7934378,0.00019839,2]
[359721654,1746279046983,-507.79732888,0.0001984,2]
[359721655,1746279046992,-7607.12,0.0001984,2]
[359721656,1746279047001,-6441.04,0.0001984,2]
[359721657,1746279047011,-2000.0,0.0001984,2]
[359721658,1746279047020,-12500.0,0.00019847,2]
[359721659,1746279047029,-12500.0,0.00019856,2]
[359721660,1746279047038,-500.0,0.00019864,2]
[359721661,1746279047048,-11261.70107647,0.00019865,2]
[359721662,1746279047399,-1238.29892353,0.00019865,2]
[359721663,1746279047408,-507.79732888,0.0001987,2]
[359721664,1746279047417,-662.92874759,0.00019874,2]
[359721665,1746279047728,-336.0581857,0.00019727,2]
[359721666,1746279047740,-113.9418143,0.00019727,2]
[359721667,1746279047751,-450.0,0.00019727,2]
[359721668,1746279047761,-450.0,0.00019727,2]
[359721669,1746279047771,-9231.54921198,0.00019874,2]
[359721670,1746279047783,-2605.52204043,0.00019874,2]
[359721671,1746279047792,-1201.84085982,0.00019882,2]
[359721672,1746279047819,-11298.15914018,0.00019882,2]
[359721673,1746279047828,-2301.811,0.00019888,2]
[359721674,1746279047838,-210.11,0.0001989,2]
[359721675,1746279047848,-12500.0,0.00019891,2]
[359721676,1746279047857,-608.26454756,0.000199,2]
[359721677,1746279047867,-12500.0,0.000199,2]
[359721678,1746279047877,-25046.00702548,0.000199,2]
[359721679,1746279047886,-2069.37,0.000199,2]
[359721680,1746279047896,-334.31558279,0.000199,2]
[359721681,1746279047906,-4750.45013189,0.000199,3]
[359721682,1746279047915,-337.66165088,0.000199,2]
[359721683,1746279047925,-1950.7906524,0.000199,2]
[359721684,1746279047935,-5685.1335544,0.000199,2]
[359721685,1746279047944,-507.79732888,0.000199,2]
[359721686,1746279047955,-250.0,0.00019906,2]
[359721687,1746279047965,-337.66165088,0.00019969,2]
[359721688,1746279047975,-514.0,0.0001997,2]
[359721689,1746279047986,-501.29466975,0.00019973,2]
[359721690,1746279047996,-170.0108309,0.00019973,2]
[359721691,1746279048006,-500.0,0.00019973,2]
[359721692,1746279048017,-506.29141492,0.00019973,2]
[359721693,1746279048027,-366.33056747,0.00019973,2]
[359721694,1746279048036,-500.0,0.00019973,2]
[359721695,1746279048047,-501.96927337,0.00019973,2]
[359721696,1746279048056,-500.0,0.00019973,2]
[359721697,1746279048066,-500.0,0.00019973,2]
[359721698,1746279048076,-500.0,0.00019973,2]
[359721699,1746279048085,-539.24803438,0.00019973,2]
[359721700,1746279048095,-500.0,0.00019973,2]
[359721701,1746279048105,-505.92257895,0.00019973,2]
[359721702,1746279048115,-502.98408913,0.00019973,2]
[359721703,1746279048124,-505.26039964,0.00019973,2]
[359721704,1746279048134,-517.26161729,0.00019973,2]
[359721705,1746279048144,-500.0,0.00019973,2]
[359721706,1746279048154,-500.0,0.00019973,2]
[359721707,1746279048164,-160.20238278,0.00019973,2]
[359721708,1746279048174,-504.43483647,0.00019973,2]
[359721709,1746279048183,-500.0,0.00019973,2]
[359721710,1746279048193,-152.63342926,0.00019973,2]
[359721711,1746279048203,-500.0,0.00019973,2]
[359721712,1746279048213,-128080.80077955,0.0001998,2]
[359721713,1746279048223,-450.0,0.00019985,2]
[359721714,1746279048233,-450.0,0.00019985,2]
[359721715,1746279048243,-450.0,0.00019985,2]
[359721716,1746279048252,-450.0,0.00019985,2]
[359721717,1746279048263,-450.0,0.00019985,2]
[359721718,1746279048274,-500.0,0.00019985,2]
[359721719,1746279048285,-500.0,0.00019985,2]
[359721720,1746279048294,-500.0,0.00019985,2]
[359721721,1746279048304,-500.0,0.00019985,2]
[359721722,1746279048314,-40665.28617599,0.00019985,2]
[359721723,1746279048324,-22395.3415202,0.00019986,2]
[359721724,1746279048334,-3518.8314887,0.00019986,2]
[359721725,1746279048343,-295112.5814296,0.00019986,2]
[359721726,1746279048353,-12074.7638425,0.00019986,2]
[359721727,1746279048364,-19778.8608215,0.00019986,2]
[359721728,1746279048374,-500.0,0.00019989,2]
[359721729,1746279048384,-463.24295261,0.00019989,2]
[359721730,1746279048394,-500.0,0.00019999,2]
[359721731,1746279048405,-300.0,0.00019999,2]
[359721732,1746279048415,-300.0,0.00019999,2]
[359721733,1746279048425,-300.0,0.00019999,2]
[359721734,1746279048435,-300.0,0.00019999,2]
[359721735,1746279048445,-548.69815494,0.00019999,2]
[359721736,1746279048454,-793.68,0.00019999,2]
[359721737,1746279048465,-793.68,0.00019999,2]
[359721738,1746279048474,-793.68,0.00019999,2]
[359721739,1746279048484,-793.68,0.00019999,2]
[359721740,1746279048494,-793.68,0.00019999,2]
[359721741,1746279048504,-793.68,0.00019999,2]
[359721742,1746279048513,-793.68,0.00019999,2]
[359721743,1746279048524,-793.68,0.00019999,2]
[359721744,1746279048534,-793.68,0.00019999,2]
[359721745,1746279048544,-793.68,0.00019999,2]
[359721746,1746279048554,-793.68,0.00019999,2]
[359721747,1746279048564,-793.68,0.00019999,2]
[359721748,1746279048574,-793.68,0.00019999,2]
[359721749,1746279048584,-793.68,0.00019999,2]
[359721750,1746279048594,-793.68,0.00019999,2]
[359721751,1746279048604,-793.68,0.00019999,2]
[359721752,1746279048614,-793.68,0.00019999,2]
[359721753,1746279048624,-793.68,0.00019999,2]
[359721754,1746279048634,-793.68,0.00019999,2]
[359721755,1746279048643,-793.68,0.00019999,2]
[359721756,1746279048653,-793.68,0.00019999,2]
[359721757,1746279048662,-793.68,0.00019999,2]
[359721758,1746279048672,-793.80550993,0.00019999,2]
[359721759,1746279048682,-500.0,0.00019999,2]